Cogmind - Beta 16 @@@ ROGUE MODE // 2026.01.31 @ 00:57:57 // Winter2022/Polymind Player: naththebg Result: Destroyed by Y-64 Sentinel with KE Penetrator Performance ------------- Evolutions (6) 3000 Regions Visited (14) 2800 Robots Destroyed (42) 210 Value Destroyed (1332) 1332 Prototype IDs (7) 140 Alien Tech Used (0) 0 Bonus (6437) 6437 TOTAL SCORE: 13699 Bonus ------- Polymind Skill 5516 Pacifist 470 Registered with UFD 300 Met Zhirov 300 Friendly Fire -149 Cogmind --------- Core Integrity 0/1150 Matter 0/0 Energy 27/100 System Corruption 0% Temperature Cool (0) Movement Core (50) Location -4/Factory Parts ------- > --- POWER (1) -------- (None) > --- PROPULSION (2) --- (None) > --- UTILITY (3) ------ (None) > --- WEAPON (1) ------- (None) > --- INVENTORY (0) ---- (None) Peak State ------------ > --- POWER ------------ Improved Deuterium Engine > --- PROPULSION ------- Overtuned Treads Overtuned Treads > --- UTILITY ---------- Scrap Suit Makeshift Microdissipator Network Target Analyzer Makeshift Light Armor Plating > --- WEAPON ----------- Barrage Gun Overtuned Barrage Gun > --- INVENTORY -------- (None) [Rating: 35] Favorites ----------- Power Light Nuclear Core Engine Improved Ion Engine Power Core Light Nuclear Core Propulsion Light Treads Treads Light Treads Leg Aluminum Leg Wheel Wheel Hover Unit Improved Hover Unit Flight Unit VTOL Module Utility Heat Sink Device Heat Sink Storage Medium Storage Unit Processor Transport Network Coupler Hackware Hacking Suite Protection Light Armor Plating Weapon Heavy Assault Rifle Energy Gun Beam Rifle Ballistic Gun Heavy Assault Rifle Special Weapon Welding Torch Special Melee Weapon Improved Datajack Build | -11 -10 -10 -9 -8 -7 -7 -7 -7 -5 -5 -5 -5 -4 -4 ------- Run | Yrd Mat Min Mat Mat Fac Sto Rec Scr Fac Upp Upp Zhi Pro Fac Slots Evolved . | . . . . . . . . . . . . . . . Power . | . . . . . . . . . . . . . . . Propulsion . | . . . . . . . . . . . . . . . Utility . | . . . . . . . . . . . . . . . Weapon . | . . . . . . . . . . . . . . . Parts Attached . | . . . . . . . . . . . . . . . Power . | . . . . . . . . . . . . . . . Engine . | . . . . . . . . . . . . . . . Core . | . . . . . . . . . . . . . . . Reactor . | . . . . . . . . . . . . . . . Propulsion . | . . . . . . . . . . . . . . . Treads . | . . . . . . . . . . . . . . . Leg . | . . . . . . . . . . . . . . . Wheel . | . . . . . . . . . . . . . . . Hover . | . . . . . . . . . . . . . . . Flight . | . . . . . . . . . . . . . . . Utility . | . . . . . . . . . . . . . . . Device . | . . . . . . . . . . . . . . . Storage . | . . . . . . . . . . . . . . . Processor . | . . . . . . . . . . . . . . . Hackware . | . . . . . . . . . . . . . . . Protection . | . . . . . . . . . . . . . . . Artifact . | . . . . . . . . . . . . . . . Weapon . | . . . . . . . . . . . . . . . Energy Gun . | . . . . . . . . . . . . . . . Energy Cannon . | . . . . . . . . . . . . . . . Ballistic Gun . | . . . . . . . . . . . . . . . Ballistic Cannon . | . . . . . . . . . . . . . . . Launcher . | . . . . . . . . . . . . . . . Special Weapon . | . . . . . . . . . . . . . . . Impact Weapon . | . . . . . . . . . . . . . . . Slashing Weapon . | . . . . . . . . . . . . . . . Piercing Weapon . | . . . . . . . . . . . . . . . Special Melee Weapon . | . . . . . . . . . . . . . . . Unidentified Prototypes . | . . . . . . . . . . . . . . . Parts Lost 40 | . . . . 4 . 6 . . 19 . . . . 11 Power 7 | . . . . . . 1 . . 4 . . . . 2 Propulsion 12 | . . . . 1 . 3 . . 4 . . . . 4 Utility 7 | . . . . 1 . 1 . . 2 . . . . 3 Weapon 14 | . . . . 2 . 1 . . 9 . . . . 2 Highest Loss Streak 18 | . . . . 4 . 6 . . 18 . . . . 4 To Critical Strikes . | . . . . . . . . . . . . . . . Average Backups . | . 1 1 . . . . . . . . . . . . Power . | . . . . . . . . . . . . . . . Propulsion . | . . . . . . . . . . . . . . . Utility . | . . . . . . . . . . . . . . . Weapon . | . 1 1 . . . . . . . . . . . . Tool/Special . | . . . . . . . . . . . . . . . Unused Backups 5 | . 1 2 . 1 . . . 1 . . . . . . Power . | . . . . . . . . . . . . . . . Propulsion . | . . . . . . . . . . . . . . . Utility 2 | . . . . 1 . . . 1 . . . . . . Weapon 3 | . 1 2 . . . . . . . . . . . . Tool/Special . | . . . . . . . . . . . . . . . Average Slot Usage (%) 78 | . 85 100 100 81 100 82 71 68 69 . 92 100 100 74 Engine 8 | . 13 15 18 6 14 12 14 13 5 . . . . 6 Core 3 | . . . . 2 . . . . 2 . 23 25 25 7 Treads 9 | . 28 31 . 14 . . . . 11 . . . . . Leg 2 | . . . . 5 . . . . 4 . . . . . Wheel 2 | . . 1 17 . . . . . . . . . . 13 Hover 5 | . . . 18 4 28 22 14 13 . . . . . . Flight 5 | . . . . . . . . . . . 46 50 50 16 Device 11 | . 13 16 17 17 14 10 . . 12 . . . . 12 Storage 1 | . 13 15 . . . . . . . . . . . . Processor 5 | . 13 15 18 . . . . . 10 . . . . 8 Hackware 5 | . . . . 2 28 25 28 26 . . . . . . Protection 2 | . . . . 4 . . . . 5 . . . . . Energy Gun 4 | . . . . 11 . 1 14 13 . . . . . . Ballistic Gun 7 | . . . . 8 . . . . 15 . 23 25 25 7 Special Melee Weapon 1 | . . . . 1 14 8 . . . . . . . . Peak Build Rating 35 | . 7 8 8 20 20 20 9 35 35 . 9 9 9 9 Average Rating 10 | . 6 7 6 9 20 16 9 8 24 . 8 9 9 6 On Entrance 9 | . . 7 8 5 20 20 9 9 35 . . 9 9 9 Avg Prop Armor Cover (%) 12 | . . . . 20 . 18 11 11 23 . . . . . Naked Turns 210 | . 16 . 4 2 . 12 . 10 44 92 1 . . 29 Heaviest Build 25 | . 15 15 6 18 7 7 2 25 25 . 8 8 8 8 Greatest Support 46 | 3 46 46 20 40 14 14 3 36 40 3 8 8 8 20 Greatest Overweight (x) 2 | . . . . 2 . . . . . . . . . . Average Overweight (x) . | . . . . . . . . . . . . . . . Largest Inventory Capacity 6 | . 6 6 . 1 1 1 1 1 1 . . . . . Average Capacity 1 | . 5 5 . . 1 . 1 . . . . . . . Most Carried 2 | . 2 2 . 1 . . . 1 . . . . . . Average Carried . | . 1 1 . . . . . . . . . . . . Final Capacity 6 | . 6 . . 1 1 1 1 1 . . . . . . Final Carried 2 | . 2 . . . . . . . . . . . . . Scrap Suit Usage (%) 8 | . . . . . . . . 1 57 . . . . . Class Distribution -------------------- 22% | Sentry 19% | Operator 12% | Swarmer 10% | Hauler 9% | Builder 8% | Z-Light 7% | Cogmind 4% | Grunt 3% | Hunter Dominant Class ---------------- Hauler | -10/Materials Hauler | -10/Mines Builder | -9/Materials Sentry | -8/Materials Operator | -7/Factory Operator | -7/Storage Operator | -7/Recycling Operator | -7/Scraptown Z-Light | -5/Factory Cogmind | -5/Upper Caves Swarmer | -5/Upper Caves Swarmer | -5/Zhirov Swarmer | -4/Proximity Caves Builder | -4/Factory Resources | -11 -10 -10 -9 -8 -7 -7 -7 -7 -5 -5 -5 -5 -4 -4 ----------- Run | Yrd Mat Min Mat Mat Fac Sto Rec Scr Fac Upp Upp Zhi Pro Fac Matter Collected 339 | . . . . 67 . . . . 160 . 36 . . 76 Remotely . | . . . . . . . . . . . . . . . Salvage Created 1623 | . . . . 567 . 84 . . 633 . 40 . . 299 Parts 116 | . . . . 50 . 4 . . 38 . 3 . . 21 Haulers Intercepted 3 | . . . . 2 . . . . 1 . . . . . Recyclers Shooed 1 | . . . . 1 . . . . . . . . . . Parts Field Recycled . | . . . . . . . . . . . . . . . Retrieved Matter . | . . . . . . . . . . . . . . . Parts Self-Destructed 10 | . . . . . . . . . . . 10 . . . Prevented . | . . . . . . . . . . . . . . . Parts Restored . | . . . . . . . . . . . . . . . Kills | -11 -10 -10 -9 -8 -7 -7 -7 -7 -5 -5 -5 -5 -4 -4 ------- Run | Yrd Mat Min Mat Mat Fac Sto Rec Scr Fac Upp Upp Zhi Pro Fac Combat Hostiles Destroyed 31 | . . . . 11 . 1 . . 14 . 3 . . 2 Melee 1 | . . . . . . 1 . . . . . . . . Guns 30 | . . . . 11 . . . . 14 . 3 . . 2 Classes Destroyed 11 | . . . . 7 . . . . 2 . . . . 2 Worker 3 | . . . . . . . . . . . . . . 3 Builder 2 | . . . . 2 . . . . . . . . . . Tunneler 1 | . . . . 1 . . . . . . . . . . Hauler 3 | . . . . 2 . . . . 1 . . . . . Watcher 1 | . . . . 1 . . . . . . . . . . Swarmer 12 | . . . . 3 . . . . 6 . 3 . . . Grunt 12 | . . . . 5 . 1 . . 5 . . . . 1 Brawler 1 | . . . . . . . . . . . . . . 1 Sentry 3 | . . . . 3 . . . . . . . . . . Hunter 3 | . . . . . . . . . 3 . . . . . Elite 1 | . . . . . . . . . 1 . . . . . Best Kill Streak 9 | . . . . 5 . 1 . . 9 . 2 . . 5 Combat Bots Only 8 | . . . . 5 . 1 . . 8 . 2 . . 2 Max Kills in Single Turn 2 | . . . . 2 . 1 . . 2 . 1 . . 1 Gunslinging 1 | . . . . 1 . . . . . . . . . . Exploded . | . . . . . . . . . . . . . . . Melee 1 | . . . . . . 1 . . . . . . . . Uniques/NPCs Destroyed . | . . . . . . . . . . . . . . . Combat | -11 -10 -10 -9 -8 -7 -7 -7 -7 -5 -5 -5 -5 -4 -4 -------- Run | Yrd Mat Min Mat Mat Fac Sto Rec Scr Fac Upp Upp Zhi Pro Fac Hostile Shots Fired 601 | . 8 3 . 67 . 103 . . 309 22 17 . . 72 Missed 193 | . 5 2 . 9 . 65 . . 75 6 9 . . 22 Hits 408 | . 3 1 . 58 . 38 . . 234 16 8 . . 50 Melee 1 | . . 1 . . . . . . . . . . . . Projectile 407 | . 3 . . 58 . 38 . . 234 16 8 . . 50 AOE 1 | . . 1 . . . . . . . . . . . . Critical Strikes 17 | . . . . 3 . . . . 7 1 . . . 6 Damage Taken 6818 | . 35 108 . 845 . 542 . . 3290 305 114 . . 1579 Core 2503 | . . 12 . 121 . 310 . . 528 305 68 . . 1159 Absorbed by Shields 145 | . . . . . . . . . 140 . . . . 5 Ignored by Resistances 603 | . . . . . . . . . 603 . . . . . Regen/Repaired (Parts) 84 | . . . . 84 . . . . . . . . . . Core Remaining (%) 72 | 100 . 95 100 78 . . . 55 . . . . 9 . Volleys Fired 149 | . . . . 50 . . . . 72 . 9 . . 18 Largest 3 | . . . . 2 . . . . 3 . 1 . . 1 Hottest 79 | . . . . 79 . . . . 79 . 23 . . 23 Shots Fired 226 | . . . . 84 . . 1 . 114 . 9 . . 18 Gun 226 | . . . . 84 . . 1 . 114 . 9 . . 18 Cannon . | . . . . . . . . . . . . . . . Launcher . | . . . . . . . . . . . . . . . Special . | . . . . . . . . . . . . . . . Kinetic 175 | . . . . 34 . . . . 114 . 9 . . 18 Thermal 51 | . . . . 50 . . 1 . . . . . . . Explosive . | . . . . . . . . . . . . . . . Electromagnetic . | . . . . . . . . . . . . . . . Robot Hit Streak 15 | . . . . 8 . . . . 11 . 4 . . 15 Robot Miss Streak 6 | . . . . 4 . . 1 . 6 . 1 . . 1 Penetration Max 1 | . . . . . . . . . 1 . . . . . Secondary Targets 5 | . . . . 2 . . . . 3 . . . . . Max Gunslinging Chain 1 | . . . . 1 . . . . 1 . . . . . Shots Hit Robots 169 | . . . . 61 . 2 . . 82 . 7 . . 17 Core Hits 88 | . . . . 32 . 2 . . 39 . 3 . . 12 Critical Kills 1 | . . . . . . . . . 1 . . . . . Critical Parts Destroyed 2 | . . . . . . . . . 2 . . . . . Critical Strikes 6 | . . . . 3 . . . . 3 . . . . . Burn 3 | . . . . 3 . . . . . . . . . . Destroy 3 | . . . . . . . . . 3 . . . . . Melee Attacks 4 | . . . . 2 . 2 . . . . . . . . Impact . | . . . . . . . . . . . . . . . Slashing . | . . . . . . . . . . . . . . . Piercing . | . . . . . . . . . . . . . . . Sneak Attacks 1 | . . . . 1 . . . . . . . . . . Combat Hostiles . | . . . . . . . . . . . . . . . Follow-up Attacks . | . . . . . . . . . . . . . . . Damage Inflicted 3007 | . 1 . . 1023 . 53 . . 1543 . 114 . . 273 Guns 2910 | . . . . 986 . . . . 1543 . 114 . . 267 Cannons . | . . . . . . . . . . . . . . . Explosions . | . . . . . . . . . . . . . . . Melee . | . . . . . . . . . . . . . . . Ramming 97 | . 1 . . 37 . 53 . . . . . . . 6 Kinetic 2298 | . . . . 374 . . . . 1543 . 114 . . 267 Thermal 612 | . . . . 612 . . . . . . . . . . Explosive . | . . . . . . . . . . . . . . . Electromagnetic . | . . . . . . . . . . . . . . . Impact . | . . . . . . . . . . . . . . . Slashing . | . . . . . . . . . . . . . . . Piercing . | . . . . . . . . . . . . . . . Highest Corruption 1 | . . . . . . 1 1 . 1 1 1 1 1 . Average Corruption 1 | . . . . . . 1 1 . 1 1 1 1 1 . Corruption Purged . | . . . . . . . . . . . . . . . Corruption Blocked . | . . . . . . . . . . . . . . . Effects 3 | . . . . . . . 1 . . 1 1 . . . Message Errors 1 | . . . . . . . . . . 1 . . . . Heat Flow Errors 1 | . . . . . . . . . . . 1 . . . Misfires 1 | . . . . . . . 1 . . . . . . . Overload Shots . | . . . . . . . . . . . . . . . Overflow Damage . | . . . . . . . . . . . . . . . Projectiles . | . . . . . . . . . . . . . . . Explosions . | . . . . . . . . . . . . . . . Melee . | . . . . . . . . . . . . . . . Knockbacks . | . . . . . . . . . . . . . . . Impact . | . . . . . . . . . . . . . . . Kinetic . | . . . . . . . . . . . . . . . Secondary . | . . . . . . . . . . . . . . . Self-Inflicted Damage 25 | . . . . . . 23 . . . . . . . 2 Shots . | . . . . . . . . . . . . . . . Rammed 31 | . 1 1 . 16 . 10 . . . . . . . 3 Targets Rammed 33 | . 1 1 . 18 . 10 . . . . . . . 3 Kicked 2 | . . . . 2 . . . . . . . . . . Crushed . | . . . . . . . . . . . . . . . Highest Temperature 282 | . 3 . . 282 . 13 6 . 200 21 165 . . 32 Average Temperature 62 | . 3 . . 65 . 5 4 . 85 13 58 . . 11 Received Heat Transfer 1278 | . 18 . . 432 . 141 . . 310 151 . . . 226 Siege Activations . | . . . . . . . . . . . . . . . Martial Activations . | . . . . . . . . . . . . . . . Shielding Activations . | . . . . . . . . . . . . . . . Robots Disrupted . | . . . . . . . . . . . . . . . Combat Hostiles . | . . . . . . . . . . . . . . . Robots Corrupted . | . . . . . . . . . . . . . . . Combat Hostiles . | . . . . . . . . . . . . . . . Parts Fried 1 | . . . . . . . . . . . 1 . . . Impact Corruptions . | . . . . . . . . . . . . . . . Robots Melted . | . . . . . . . . . . . . . . . Combat Hostiles . | . . . . . . . . . . . . . . . Parts Melted . | . . . . . . . . . . . . . . . Heat Transferred 1702 | . . . . 1702 . . . . . . . . . . Parts Sabotaged . | . . . . . . . . . . . . . . . Parts Stolen . | . . . . . . . . . . . . . . . Parts Stripped . | . . . . . . . . . . . . . . . Power Chain Reactions . | . . . . . . . . . . . . . . . Alert | -11 -10 -10 -9 -8 -7 -7 -7 -7 -5 -5 -5 -5 -4 -4 ------- Run | Yrd Mat Min Mat Mat Fac Sto Rec Scr Fac Upp Upp Zhi Pro Fac Maximum Alert Level . | . . . . . . . . . . . . . . . Low Security (%) 100 | 100 100 100 100 100 100 100 100 . 100 . . . . 100 Level 1 . | . . . . . . . . . . . . . . . Level 2 . | . . . . . . . . . . . . . . . Level 3 . | . . . . . . . . . . . . . . . Level 4 . | . . . . . . . . . . . . . . . Level 5 . | . . . . . . . . . . . . . . . High Security . | . . . . . . . . . . . . . . . Max Security . | . . . . . . . . . . . . . . . Peak Influence 145 | . . . 5 145 3 85 39 . 99 . . . . 80 Initial 39 | . . . . . 3 . 39 . . . . . . . Average 26 | . . . . 41 2 24 27 . 30 . . . . 20 Influence Increases 1287 | . . . 5 396 . 212 . . 319 . 90 . . 265 Destroy 0b10 Robot/C 620 | . . . . 220 . 20 . . 280 . 60 . . 40 Destroy 0b10 Robot/NC 50 | . . . . 30 . . . . 5 . . . . 15 Destroy Leader 88 | . . . . 56 . . . . 32 . . . . . Trap Triggered on 0b10 10 | . . . . . . 10 . . . . . . . . Successful Hack 37 | . . . 5 15 . 17 . . . . . . . . Destroy Structure 2 | . . . . . . . . . 2 . . . . . Partial Spotted 30 | . . . . 15 . 15 . . . . . . . . Lose Combat Pursuer 450 | . . . . 60 . 150 . . . . 30 . . 210 Influence Decreases 1242 | . . . 5 387 9 112 91 9 316 3 60 30 . 220 Entered New Map 108 | . . . . . 6 . 61 9 . 2 . 30 . . Time Decay 704 | . . . 5 298 3 52 30 . 136 1 60 . . 119 Lost Part 355 | . . . . 15 . 60 . . 180 . . . . 100 Purge Threat 68 | . . . . 68 . . . . . . . . . . Miscellaneous 7 | . . . . 6 . . . . . . . . . 1 Squads Dispatched 11 | . . . . 2 . 3 . . 3 . . . 1 2 Investigation 1 | . . . . . . . . . . . . . 1 . Extermination 2 | . . . . . . 1 . . . . . . . 1 Reinforcement 8 | . . . . 2 . 2 . . 3 . . . . 1 Assault . | . . . . . . . . . . . . . . . Garrison . | . . . . . . . . . . . . . . . Intercept . | . . . . . . . . . . . . . . . Searches Triggered . | . . . . . . . . . . . . . . . Construction Impeded . | . . . . . . . . . . . . . . . Haulers Reinforced 2 | . . . . . . . . . 2 . . . . . Active Scanning Responses . | . . . . . . . . . . . . . . . Cargo Convoy Interrupts . | . . . . . . . . . . . . . . . Stealth | -11 -10 -10 -9 -8 -7 -7 -7 -7 -5 -5 -5 -5 -4 -4 --------- Run | Yrd Mat Min Mat Mat Fac Sto Rec Scr Fac Upp Upp Zhi Pro Fac Distress Signals 2 | . . . . 1 . 1 . . . . . . . . Communications Jammed . | . . . . . . . . . . . . . . . Distress Signals . | . . . . . . . . . . . . . . . Times Spotted 121 | . 1 1 1 24 . 26 . . 33 4 15 . . 16 Peak Tracking Total 17 | . 1 1 1 6 . 17 . . 7 4 7 . . 7 Tactical Retreats 16 | . . . . 4 . 2 . . . . 3 . . 7 Traps | -11 -10 -10 -9 -8 -7 -7 -7 -7 -5 -5 -5 -5 -4 -4 ------- Run | Yrd Mat Min Mat Mat Fac Sto Rec Scr Fac Upp Upp Zhi Pro Fac Traps Triggered 6 | . . . . 2 . . . . 2 . . . . 2 Indirectly . | . . . . . . . . . . . . . . . Trap Hack Attempts 7 | . . . . . . 7 . . . . . . . . Triggered . | . . . . . . . . . . . . . . . Disarmed . | . . . . . . . . . . . . . . . Reprogrammed 2 | . . . . . . 2 . . . . . . . . Reused 1 | . . . . . . 1 . . . . . . . . Traps Extracted . | . . . . . . . . . . . . . . . Installed . | . . . . . . . . . . . . . . . Triggered 1 | . . . . . . 1 . . . . . . . . Machines | -11 -10 -10 -9 -8 -7 -7 -7 -7 -5 -5 -5 -5 -4 -4 ---------- Run | Yrd Mat Min Mat Mat Fac Sto Rec Scr Fac Upp Upp Zhi Pro Fac Machines Disabled . | . . . . . . . . . . . . . . . Max in Single Turn . | . . . . . . . . . . . . . . . Machines Repaired . | . . . . . . . . . . . . . . . Machines Dismantled . | . . . . . . . . . . . . . . . Machines Sabotaged . | . . . . . . . . . . . . . . . Overloaded Fab Kills . | . . . . . . . . . . . . . . . Hacking | -11 -10 -10 -9 -8 -7 -7 -7 -7 -5 -5 -5 -5 -4 -4 --------- Run | Yrd Mat Min Mat Mat Fac Sto Rec Scr Fac Upp Upp Zhi Pro Fac Machines Accessed 15 | . . . 3 5 . 3 1 1 . . . . 1 1 Terminals 9 | . . . 2 3 . 2 . . . . . . 1 1 Fabricators . | . . . . . . . . . . . . . . . Repair Stations 2 | . . . . 1 . 1 . . . . . . . . Recycling Units 1 | . . . . . . . 1 . . . . . . . Scanalyzers 2 | . . . 1 1 . . . . . . . . . . Garrison Access . | . . . . . . . . . . . . . . . Total Hacks 55 | . . . 8 15 . 7 3 16 . . . . 3 3 Successful 40 | . . . 5 10 . 4 1 16 . . . . 3 1 Failed 15 | . . . 3 5 . 3 2 . . . . . . 2 Catastrophic . | . . . . . . . . . . . . . . . Database Lockouts . | . . . . . . . . . . . . . . . Manual 5 | . . . 1 1 . 3 . . . . . . . . Terminals 23 | . . . 6 7 . 4 . . . . . . 3 3 Fabricators . | . . . . . . . . . . . . . . . Repair Stations 8 | . . . . 5 . 3 . . . . . . . . Recycling Units 3 | . . . . . . . 3 . . . . . . . Scanalyzers 5 | . . . 2 3 . . . . . . . . . . Garrison Access . | . . . . . . . . . . . . . . . Terminal Hacks 29 | . . . 2 5 . 2 . 16 . . . . 3 1 Record 19 | . . . . . . . . 16 . . . . 3 . Prototype ID Bank 3 | . . . 1 1 . 1 . . . . . . . . Open Door 1 | . . . . . . 1 . . . . . . . . Scanalyzer Index 1 | . . . . 1 . . . . . . . . . . Alert Level 4 | . . . 1 2 . . . . . . . . . 1 Unreport Threat 1 | . . . . 1 . . . . . . . . . . Fabricator Hacks . | . . . . . . . . . . . . . . . Repair Station Hacks 3 | . . . . 2 . 1 . . . . . . . . Scan Component 1 | . . . . 1 . . . . . . . . . . Repair 1 | . . . . 1 . . . . . . . . . . Refit 1 | . . . . . . 1 . . . . . . . . Recycling Unit Hacks 1 | . . . . . . . 1 . . . . . . . Retrieve Components 1 | . . . . . . . 1 . . . . . . . Scanalyzer 5 | . . . 2 3 . . . . . . . . . . Retrieve Study 5 | . . . 2 3 . . . . . . . . . . Garrison Access Hacks . | . . . . . . . . . . . . . . . Unauthorized Hacks 2 | . . . 1 . . 1 . . . . . . . . Terminals 2 | . . . 1 . . 1 . . . . . . . . Botnet 2 | . . . 1 . . 1 . . . . . . . . Fabricators . | . . . . . . . . . . . . . . . Repair Stations . | . . . . . . . . . . . . . . . Recycling Units . | . . . . . . . . . . . . . . . Scanalyzers . | . . . . . . . . . . . . . . . Garrison Access . | . . . . . . . . . . . . . . . Data Cores Recovered . | . . . . . . . . . . . . . . . Used . | . . . . . . . . . . . . . . . Hacking Detections 11 | . . . 3 4 . 3 . . . . . . 1 . Full Trace Events 1 | . . . . . . . . . . . . . 1 . Feedback Events . | . . . . . . . . . . . . . . . Feedback Blocked . | . . . . . . . . . . . . . . . Robot Schematics Acquired . | . . . . . . . . . . . . . . . Robots Built . | . . . . . . . . . . . . . . . Authchips . | . . . . . . . . . . . . . . . Time . | . . . . . . . . . . . . . . . Total Robot Build Rating . | . . . . . . . . . . . . . . . Part Schematics Acquired . | . . . . . . . . . . . . . . . Parts Built . | . . . . . . . . . . . . . . . Authchips . | . . . . . . . . . . . . . . . Time . | . . . . . . . . . . . . . . . Total Part Build Rating . | . . . . . . . . . . . . . . . Part Studies Acquired 5 | . . . 2 3 . . . . . . . . . . Parts Repaired 1 | . . . . 1 . . . . . . . . . . Time 26 | . . . . 26 . . . . . . . . . . Parts Recycled . | . . . . . . . . . . . . . . . Recycled Matter . | . . . . . . . . . . . . . . . Retrieved Matter . | . . . . . . . . . . . . . . . Retrieved Components 1 | . . . . . . . 1 . . . . . . . Parts Scanalyzed . | . . . . . . . . . . . . . . . Part Schematics Acquired . | . . . . . . . . . . . . . . . Parts Damaged . | . . . . . . . . . . . . . . . Bothacking | -11 -10 -10 -9 -8 -7 -7 -7 -7 -5 -5 -5 -5 -4 -4 ------------ Run | Yrd Mat Min Mat Mat Fac Sto Rec Scr Fac Upp Upp Zhi Pro Fac Used RIF Installer . | . . . . . . . . . . . . . . . Robots Hacked 16 | . 1 1 1 6 . 2 . . 3 . 1 . . 1 Non-combat 8 | . 1 1 1 3 . 1 . . . . . . . 1 Combat 8 | . . . . 3 . 1 . . 3 . 1 . . . Robot Hacks Applied 24 | . 1 1 2 9 . 3 . . 6 . 1 . . 1 parse_system 3 | . . . . 1 . 2 . . . . . . . . no_distress 1 | . . . . 1 . . . . . . . . . . map_walls 2 | . . 1 . . . . . . . . . . . 1 locate_stockpiles 1 | . 1 . . . . . . . . . . . . . find_terminals 2 | . . . . 1 . 1 . . . . . . . . map_route 1 | . . . 1 . . . . . . . . . . . mark_security 1 | . . . 1 . . . . . . . . . . . find_shortcuts 7 | . . . . 3 . . . . 3 . 1 . . . find_garrison 6 | . . . . 3 . . . . 3 . . . . . Relay Couplers Released . | . . . . . . . . . . . . . . . Fabnet Peak Effective % . | . . . . . . . . . . . . . . . Robots Rewired . | . . . . . . . . . . . . . . . Allies Hacked . | . . . . . . . . . . . . . . . Hacks Repelled . | . . . . . . . . . . . . . . . Allies | -11 -10 -10 -9 -8 -7 -7 -7 -7 -5 -5 -5 -5 -4 -4 -------- Run | Yrd Mat Min Mat Mat Fac Sto Rec Scr Fac Upp Upp Zhi Pro Fac Total Allies . | . . . . . . . . . . . . . . . Largest Group . | . . . . . . . . . . . . . . . Highest-Rated Group . | . . . . . . . . . . . . . . . Highest-Rated Ally . | . . . . . . . . . . . . . . . Total Orders . | . . . . . . . . . . . . . . . Ally Attacks . | . . . . . . . . . . . . . . . Total Damage . | . . . . . . . . . . . . . . . Kills . | . . . . . . . . . . . . . . . Allies Corrupted . | . . . . . . . . . . . . . . . Allies Melted . | . . . . . . . . . . . . . . . Intel | -11 -10 -10 -9 -8 -7 -7 -7 -7 -5 -5 -5 -5 -4 -4 ------- Run | Yrd Mat Min Mat Mat Fac Sto Rec Scr Fac Upp Upp Zhi Pro Fac Active Infowar (turns) 616 | . 113 210 99 22 . . . . . . . . . 172 Optics 59 | . . . 37 22 . . . . . . . . . . Terrain 245 | . . 11 62 . . . . . . . . . . 172 Structural 205 | . . 11 62 . . . . . . . . . . 132 T.N.C. 312 | . 113 199 . . . . . . . . . . . . Robot Analysis Total 9 | . 1 1 1 3 . . . 1 2 . . . . . Derelict Logs Recovered 5 | . . 1 . . . . . . . 1 2 . 1 . Drone Launches . | . . . . . . . . . . . . . . . Drone Recoveries . | . . . . . . . . . . . . . . . Exploration | -11 -10 -10 -9 -8 -7 -7 -7 -7 -5 -5 -5 -5 -4 -4 ------------- Run | Yrd Mat Min Mat Mat Fac Sto Rec Scr Fac Upp Upp Zhi Pro Fac Turns Passed 3008 | 11 129 210 103 935 25 176 64 250 425 92 132 41 49 366 Spaces Moved 3605 | 22 100 138 155 572 44 270 128 481 270 184 313 128 151 649 Core 1227 | 22 31 1 5 65 . 42 128 479 134 184 1 . . 135 Treads 602 | . 69 123 . 277 . . . 2 131 . . . . . Legs 80 | . . . . 75 . . . . 5 . . . . . Wheels 343 | . . 14 86 . . . . . . . . . . 243 Hover 491 | . . . 64 155 44 228 . . . . . . . . Flight 862 | . . . . . . . . . . . 312 128 151 271 Fastest Speed 32 | 50 50 50 50 50 56 50 50 50 50 50 32 32 32 32 Average Speed 68 | 50 125 151 64 118 56 56 50 50 94 50 32 32 32 50 Slowest Speed 160 | 50 160 160 80 160 56 80 50 140 140 50 50 32 32 70 Overloaded Moves . | . . . . . . . . . . . . . . . Propulsion Burnouts . | . . . . . . . . . . . . . . . Robots Hopped 1 | . . . . . . . . . . . . . . 1 Potential Cave-ins . | . . . . . . . . . . . . . . . Cave-ins Triggered . | . . . . . . . . . . . . . . . Exploration Rate (%) 31 | 3 18 34 25 51 2 51 35 36 12 43 49 57 37 22 Regions Visited 14 Branch Regions 8 Pre-discovered Areas 4 | . . 1 . . . . . 3 . . . . . . Known Exits Taken 4 | . . . . . . . . 1 1 1 . . 1 . Unknown Exits Taken 10 | 1 1 1 1 1 1 1 1 . . . 1 1 . . Scrap Searched 1 | . . . . . . . . . . . 1 . . . Spaces Dug . | . . . . . . . . . . . . . . . Terrain Destroyed . | . . . . . . . . . . . . . . . Melee . | . . . . . . . . . . . . . . . Projectile . | . . . . . . . . . . . . . . . AOE . | . . . . . . . . . . . . . . . Terrain Rammed . | . . . . . . . . . . . . . . . Walls Destroyed . | . . . . . . . . . . . . . . . Machines Disabled . | . . . . . . . . . . . . . . . Actions | -11 -10 -10 -9 -8 -7 -7 -7 -7 -5 -5 -5 -5 -4 -4 --------- Run | Yrd Mat Min Mat Mat Fac Sto Rec Scr Fac Upp Upp Zhi Pro Fac Total 3922 | 21 103 138 157 735 43 294 127 489 346 183 336 127 150 673 Wait 128 | . 2 . 2 90 . 6 . 8 5 . 15 . . . Move 3589 | 21 99 137 154 571 43 269 127 480 269 183 312 127 150 647 Hop 1 | . . . . . . . . . . . . . . 1 Pick Up 3 | . . . . 2 . . . 1 . . . . . . Fast Attach . | . . . . . . . . . . . . . . . Attach . | . . . . . . . . . . . . . . . Detach . | . . . . . . . . . . . . . . . Swap . | . . . . . . . . . . . . . . . Drop 2 | . 1 . . 1 . . . . . . . . . . Fire 149 | . . . . 50 . . . . 72 . 9 . . 18 Melee 4 | . . . . 2 . 2 . . . . . . . . Ram 13 | . . . . . . 10 . . . . . . . 3 Kick 2 | . . . . 2 . . . . . . . . . . Crush 18 | . 1 1 . 16 . . . . . . . . . . Escape Stasis 4 | . . . . . . . . . . . . . . 4 Rewire 2 | . . . 1 1 . . . . . . . . . . Trap 7 | . . . . . . 7 . . . . . . . . Miscellaneous . | . . . . . . . . . . . . . . . Route ------- -11/Scrapyard -10/Materials -10/Mines -9/Materials -8/Materials -7/Factory -7/Storage -7/Recycling -7/Scraptown -5/Factory (discovered 6 exits: Fac x4 / *Upp x2) -5/Upper Caves -5/Upper Caves (discovered 2 exits: Fac / [*Zhi]) -5/Zhirov -4/Proximity Caves -4/Factory (discovered 2 exits: Res / Upp) History --------- Turn | Location | Event 5 | -11/Scrapyard | Discovered new exit (range 15) 12 | -11/Scrapyard | Entered Materials 80 | -10/Materials | Discovered new exit (range 8) 141 | -10/Materials | Entered Mines 142 | -10/Mines | Assembled infested the area 145 | -10/Mines | Learned location of Mines (-9) 147 | -10/Mines | Assisted by a Guerilla fighting off Assembled 346 | -10/Mines | Discovered new exit (range 6) 351 | -10/Mines | Entered Materials 444 | -9/Materials | Discovered new exit (range 18) 454 | -9/Materials | Entered another Materials area 725 | -8/Materials | Repaired Lgt. Armor Plating 753 | -8/Materials | Discovered new exit (range 14) 1091 | -8/Materials | Lost 4 parts (1n1u2w) 1389 | -8/Materials | Entered Factory 1399 | -7/Factory | Discovered new exit (range 11) 1414 | -7/Factory | Entered Storage 1588 | -7/Storage | Used back door to open Recycling access 1588 | -7/Storage | Discovered new exit (range 5) 1590 | -7/Storage | Entered Recycling 1614 | -7/Recycling | Lost 6 parts (1p3n1u1w) 1642 | -7/Recycling | Scanned before Scraplab entrance 1649 | -7/Recycling | Entered Scraplab 1653 | -7/Recycling | Discovered new exit (range 3) 1654 | -7/Recycling | Entered Scraptown 1654 | -7/Scraptown | System corruption cleaned by C-Scrubber 1703 | -7/Scraptown | Visited UFD Registry 1703 | -7/Scraptown | Registered with UFD as "Ionrider" 1766 | -7/Scraptown | Visited Junk Repository 1784 | -7/Scraptown | Visited Modified Component R&D 1792 | -7/Scraptown | Visited A0-MCA Data Center 1795 | -7/Scraptown | Given a B+ rating by A0-MCA 1800 | -7/Scraptown | Found A0-MCA's Component Scanner 1817 | -7/Scraptown | Visited Cartography Club 1854 | -7/Scraptown | Learned location of Cetus (-4) 1854 | -7/Scraptown | Learned location of Hub_04(d) (-4) 1854 | -7/Scraptown | Learned location of Quarantine (-3) 1854 | -7/Scraptown | Learned 12 Materials zone layouts 1854 | -7/Scraptown | Learned 24 Factory zone layouts 1854 | -7/Scraptown | Learned 4 Mines zone layouts 1854 | -7/Scraptown | Learned 12 Lower Caves zone layouts 1854 | -7/Scraptown | Learned 20 Lower Caves zone layouts 1854 | -7/Scraptown | Learned 16 Upper Caves zone layouts 1854 | -7/Scraptown | Learned 24 Upper Caves zone layouts 1854 | -7/Scraptown | Learned 4 Armory zone layouts 1854 | -7/Scraptown | Learned location of 2 exits from Factory 1854 | -7/Scraptown | Identified exit to Factory 1854 | -7/Scraptown | Learned location of 3 exits from Factory 1904 | -7/Scraptown | Entered Factory 1905 | -5/Factory | Identified exit to Factory 1905 | -5/Factory | Identified exit to Upper Caves 2234 | -5/Factory | Destroyed 8 combat bots 2296 | -5/Factory | Core integrity fell below 50% 2320 | -5/Factory | Lost 18 parts (4p4n2u8w) 2329 | -5/Factory | Entered Upper Caves 2330 | -5/Upper Caves | Identified exit to Upper Caves 2406 | -5/Upper Caves | Core integrity fell below 20% 2421 | -5/Upper Caves | Entered another Upper Caves area 2422 | -5/Upper Caves | Discovered new exit (range 90) 2450 | -5/Upper Caves | Found DCF Scrap (13 items) 2485 | -5/Upper Caves | Learned Factory garrison access intel 2520 | -5/Upper Caves | Learned Factory terminal intel 2553 | -5/Upper Caves | Entered Zhirov 2553 | -5/Zhirov | Discovered new exit (range 3) 2559 | -5/Zhirov | Met Zhirov 2586 | -5/Zhirov | Zhirov requested help retrieving the SGEMP Prototype 2594 | -5/Zhirov | Entered Proximity Caves 2616 | -4/Proximity Caves | Spotted B-86 Titan 2643 | -4/Proximity Caves | Entered Factory 2644 | -4/Factory | Identified exit to Research 2644 | -4/Factory | Identified exit to Upper Caves 2645 | -4/Factory | Loaded intel: 27 terminal locations 2646 | -4/Factory | Loaded intel: 3 garrison access locations 2795 | -4/Factory | Lost 4 parts (1p2n1w) 2971 | -4/Factory | Core integrity fell below 50% 2985 | -4/Factory | Core integrity fell below 20% 2996 | -4/Factory | Lost 4 parts (1p2n1u) 3009 | -4/Factory | Destroyed by Y-64 Sentinel with KE Penetrator Last Messages --------------- 02965_ Wheel+ destroyed. 02965_ Penetrated by Slug. 02967_ Slammed into G-67 Veteran. 02968_ Penetrated by Slug. 02972_ Slug penetrates Wall. 02978_ Penetrated by Slug. 02978_ Knocked back. 02980_ Subcomponent Replicator disabled. 02984_ Knocked back. 03005_ Penetrated by Slug. 03005_ Terrain Scan Processor destroyed. 03005_ Lost control of U-05 Engineer. 03005_ Critical hit (Blast). 03005_ Knocked back. 03006_ Slammed into H-71 Marshal. 03007_ H-71 Marshal calls for reinforcements. 03007_ ALERT: Hostile activity reported, dispatching reinforcements to area. 03007_ Knocked back. 03009_ Penetrated by Slug. Map ----- +----------------------------------------------------+ | ???????????????????????????????????? | | ???????????????????????????????????? | | ???????????????????????????????????? | | ???????????????????????????????????? | | ???????????????????????????????????? | | ???????????????????????????????????? | | ???????????????????????????????????? | | ???????????????????????????????????? | | ???????????????????????????????????? | | ???????????????????????????????????? | | ???????????????????????????????????? | | ???????????????????????????????????? | | ?????##########????????????????????? | | ?????# ????????????????????? | | ?????# """ """ "???????????????????? | | ?????# """ """ """?????????????????? | | ?????# """ """ """ ""??????????????? | | ?????# ?????????????? | | ?????# ?????????????? | | ?????# ?????????????? | | ?????##+######+######+#####????????? | | ??????# #### #????????? | | ??????# % #????????? | | ??????# #????????? | | ??????# #????????? | | ??????###H @ Y Y #????????? | | ????????#%;###### % #????????? | | ???????## # # #????????? | | ???????#;%# """ # % #???????? | | ?????####%# """ # ########## | | ?????# + """ # | | ?????#+## # # | | ???? # #! ! # | | ?? # #? # | | ?# # #?##### | | ?# # #???#?# """ """ """ | | ?######## ###??## """"" """"" """"" | | ??????# #???# """" """"" """"" | | ??????# #???# | | ??????# " #???# | | ??????# #???# ########### | | ??????# #???# #???####### | | ??????#######???# #??##???### | | ???????????#???## #???#?#??## | | ?????????????#??# #??#??????# | | ?????????#??????# ##???#?#??? | | ?????????????#??### ##???#????#? | | ??????????????????# #??????????? | | ??????????????##??# % #??????????? | | ??????????????????# ^##???#?????? | +----------------------------------------------------+ Best States ------------- Heat Dissipation 40 Energy Generation 23 Energy Capacity 240 Matter Stores 192 Matter Capacity 200 Sight Range 18 Terrain Scan Range 14 Terrain Scan Density 85 Additional Mass Support 6 Armor Coverage 150 Resistance: KI 25 Resistance: EX 50 Resistance: I 25 Phase Shifting 5 Evasion (%) 63 Targeting Accuracy 10 Target Analysis 5 Recoil Reduction 2 Offensive Hacking 10 Defensive Hacking 10 Item Schematics ----------------- None Robot Schematics ------------------ None Fabricated ------------ Nothing Repaired ---------- Lgt. Armor Plating | 6% | -8/Materials Studied --------- Lgt. Ion Engine | -9/Materials | Hacked Wheel | -9/Materials | Hacked Aluminum Leg | -8/Materials | Hacked Particle Gun | -8/Materials | Hacked Lgt. Nuclear Core | -8/Materials | Hacked Alien Tech Used ----------------- None Achievements -------------- None Challenges ------------ None Polymind | -11 -10 -10 -9 -8 -7 -7 -7 -7 -5 -5 -5 -5 -4 -4 ---------- Run | Yrd Mat Min Mat Mat Fac Sto Rec Scr Fac Upp Upp Zhi Pro Fac Hosts 14 | . 1 1 1 4 . 1 . 1 3 . 1 . . 1 Combat Hostiles 7 | . . . . 3 . . . . 3 . 1 . . . Allies 1 | . . . . . . . . 1 . . . . . . Unique Host Classes 9 | . 1 1 1 3 . . . 1 2 . . . . . Average Host Suspicion 74 | . 99 30 36 97 8 85 50 . 87 . 100 . 23 88 Unsuspicious Activity 76 | . . 2 6 41 . 18 . 7 . . . . . 2 Returns to Shadow . | . . . . . . . . . . . . . . . Fuzzy Dispatches 2 | . . . . . . 1 . . . . . . . 1 Protomatter Created 388 | . . 64 . 45 . . . . 171 . 108 . . . Used 262 | . 5 5 12 83 . 7 . 15 116 . 14 . . 5 Decayed 127 | . . 60 . . . . . . . . 67 . . . Highest Spend 51 | . 5 5 12 30 . 7 . 15 51 . 14 . . 5 Top 5 Hosts by Kills: Y-45 Defender (-8/Materials: 6) H-66 Slayer (-5/Factory: 5) S-27 Virus (-5/Upper Caves: 5) G-47 Trooper (-8/Materials: 4) NS-VA6(E) (-7/Scraptown: 4) Game ------ Seed DisassembledHelicalCore Manual? 0 Play Time 00:42:31 Cumulative 448.0 hours Start 2026.01.31 @ 00:16:11 End 2026.01.31 @ 00:57:57 Sessions 1 Manual Loads 0 Difficulty Rogue Special Mode Winter2022/Polymind Game No. 213 Rogue 213 Adventurer 0 Explorer 0 Win Type - Total 13 Types 9/0/2/0/0/0/0/1/0/1 Lore% 85 Gallery% 82 Achievement% 61 Wizard Run 0 Options --------- Layout 1 ASCII 0 Keyboard 0 Movement Mouse Keybinds 0 Fullscreen 1 Font 24/Smallcaps Map View 50x35 Zoom Use 0% Tactical HUD 1 Map Filters NONE Filters NONE Steam X RUN: c4305656-e459-448f-a306-298423cadd9d